bitfinex/quotes_BTCUSD_20241215
["timestamp","ask_amount","ask_price","bid_price","bid_amount"]
[1734296527583,0.1301724,103120.0,103110.0,1.69134318]
[1734296528010,0.1301724,103120.0,103110.0,1.38802118]
[1734296529744,0.1301724,103120.0,103110.0,1.69134318]
[1734296529955,0.1301724,103120.0,103110.0,1.38796117]
[1734296530170,0.1301724,103120.0,103110.0,1.75137217]
[1734296530403,0.1301724,103120.0,103110.0,1.30077622]
[1734296531464,0.1301724,103120.0,103110.0,1.60409822]
[1734296531680,0.1301724,103120.0,103110.0,1.30077622]
[1734296532733,0.1301724,103120.0,103110.0,1.69128101]
[1734296532945,0.1301724,103120.0,103110.0,1.60409822]
[1734296533158,0.1301724,103120.0,103110.0,1.65255722]
[1734296534246,0.1301724,103120.0,103110.0,1.30077622]
[1734296534461,0.1301724,103120.0,103110.0,1.73975323]
[1734296534719,0.1301724,103120.0,103110.0,1.65256725]
[1734296534929,0.1301724,103120.0,103110.0,1.59438974]
[1734296535144,0.1301724,103120.0,103110.0,1.38797329]
[1734296535564,0.1301724,103120.0,103110.0,1.17000832]
[1734296536229,0.1301724,103120.0,103110.0,1.11183081]
[1734296536441,0.1301724,103120.0,103110.0,1.17000832]
[1734296538690,0.1301724,103120.0,103110.0,1.16998059]
[1734296540502,0.1301724,103120.0,103110.0,0.89887834]
[1734296540717,0.42317443,103120.0,103110.0,0.08726893]
[1734296541157,0.42317443,103120.0,103110.0,8.62e-05]
[1734296542047,1.03247091,103120.0,103110.0,8.62e-05]
[1734296542262,0.81486502,103120.0,103110.0,8.62e-05]
[1734296542938,0.81449866,103120.0,103110.0,0.02793425]
[1734296544408,0.51013537,103120.0,103110.0,0.02793425]
[1734296544842,0.42317443,103120.0,103110.0,0.02793425]
[1734296547157,0.42317443,103120.0,103110.0,8.62e-05]
[1734296561422,0.44617443,103120.0,103110.0,8.62e-05]
[1734296565558,0.53303191,103120.0,103110.0,8.62e-05]
[1734296566395,0.54859396,103120.0,103110.0,8.62e-05]
[1734296566801,0.46173648,103120.0,103110.0,8.62e-05]
[1734296567211,0.54859396,103120.0,103110.0,8.62e-05]
[1734296567419,0.44617443,103120.0,103110.0,8.62e-05]
[1734296568157,0.53303191,103120.0,103110.0,8.62e-05]
[1734296568587,0.44617443,103120.0,103110.0,8.62e-05]
[1734296569134,0.53303191,103120.0,103110.0,8.62e-05]
[1734296569421,0.44617443,103120.0,103110.0,8.62e-05]
[1734296569628,0.53303191,103120.0,103110.0,8.62e-05]
[1734296569769,0.44617443,103120.0,103110.0,8.62e-05]
[1734296570361,0.53303191,103120.0,103110.0,8.62e-05]
[1734296575551,0.66331813,103120.0,103110.0,8.62e-05]
[1734296575801,0.53303191,103120.0,103110.0,8.62e-05]
[1734296576207,0.66331813,103120.0,103110.0,8.62e-05]
[1734296576387,0.53303191,103120.0,103110.0,8.62e-05]
[1734296577187,0.66331813,103120.0,103110.0,8.62e-05]
[1734296578893,0.66339693,103120.0,103110.0,8.62e-05]
[1734296579477,0.83717494,103120.0,103110.0,8.62e-05]
[1734296582847,0.66339693,103120.0,103110.0,8.62e-05]
[1734296583480,0.83717494,103120.0,103110.0,8.62e-05]
[1734296584717,1.05439745,103120.0,103110.0,8.62e-05]
[1734296585763,1.05449247,103120.0,103110.0,8.62e-05]
[1734296586608,1.05522925,103120.0,103110.0,8.62e-05]
[1734296586793,0.96822142,103120.0,103110.0,8.62e-05]
[1734296587045,1.0552295,103120.0,103110.0,8.62e-05]
[1734296587233,1.05522006,103120.0,103110.0,8.62e-05]
[1734296587479,1.05326967,103120.0,103110.0,8.62e-05]
[1734296587712,0.96626087,103120.0,103110.0,8.62e-05]
[1734296587925,1.05326594,103120.0,103110.0,8.62e-05]
[1734296588138,1.05326561,103120.0,103110.0,8.62e-05]
[1734296588565,0.96626087,103120.0,103110.0,8.62e-05]
[1734296589040,1.05326553,103120.0,103110.0,8.62e-05]
[1734296589274,1.05326545,103120.0,103110.0,8.62e-05]
[1734296589665,0.96626087,103120.0,103110.0,8.62e-05]
[1734296590102,1.05326921,103120.0,103110.0,8.62e-05]
[1734296590306,0.96626087,103120.0,103110.0,8.62e-05]
[1734296590981,1.05326752,103120.0,103110.0,8.62e-05]
[1734296591389,0.96626087,103120.0,103110.0,8.62e-05]
[1734296591592,1.05326858,103120.0,103110.0,8.62e-05]
[1734296591801,0.96626087,103120.0,103110.0,8.62e-05]
[1734296592001,1.05326865,103120.0,103110.0,8.62e-05]
[1734296592411,1.0532711,103120.0,103110.0,8.62e-05]
[1734296593252,1.05327082,103120.0,103110.0,8.62e-05]
[1734296593474,0.96626087,103120.0,103110.0,8.62e-05]
[1734296593691,1.05327413,103120.0,103110.0,8.62e-05]
[1734296594537,1.05327621,103120.0,103110.0,8.62e-05]
[1734296594944,1.05327599,103120.0,103110.0,8.62e-05]
[1734296595491,0.96626087,103120.0,103110.0,8.62e-05]
[1734296596275,1.05328909,103120.0,103110.0,8.62e-05]
[1734296596485,0.96626087,103120.0,103110.0,8.62e-05]
[1734296599371,0.96643327,103120.0,103110.0,8.62e-05]
[1734296600370,0.96649003,103120.0,103110.0,8.62e-05]
[1734296601011,0.83592152,103120.0,103110.0,8.62e-05]
[1734296601233,1.05227654,103120.0,103110.0,8.62e-05]
[1734296601527,0.9217648,103120.0,103110.0,8.62e-05]
[1734296602445,0.8217648,103120.0,103110.0,8.62e-05]
[1734296602658,1.11541623,103120.0,103110.0,8.62e-05]
[1734296602874,0.85439273,103120.0,103110.0,8.62e-05]
[1734296603528,0.50074451,103110.0,103100.0,3.705e-05]
[1734296603743,0.86076757,103110.0,103100.0,3.705e-05]
[1734296605242,1.07813953,103110.0,103100.0,3.705e-05]
[1734296606582,1.01996202,103110.0,103100.0,3.705e-05]
[1734296606792,0.75899299,103110.0,103100.0,3.705e-05]
[1734296608581,0.93279652,103110.0,103100.0,3.705e-05]
[1734296609353,0.93265013,103110.0,103100.0,3.705e-05]
[1734296610439,0.94661444,103110.0,103100.0,3.705e-05]
[1734296610829,0.94661444,103110.0,103100.0,0.00012325]
[1734296612286,0.77282373,103110.0,103100.0,0.00012325]
[1734296612688,0.83100124,103110.0,103100.0,0.00012325]
[1734296613172,1.02350295,103110.0,103100.0,0.00012325]
[1734296613381,0.98768109,103110.0,103100.0,0.00012325]
[1734296613618,0.92950358,103110.0,103100.0,0.00012325]
[1734296614718,0.9491168,103110.0,103100.0,0.00012325]
[1734296618898,1.00729431,103110.0,103100.0,0.00012325]
[1734296619109,1.39962017,103110.0,103100.0,0.00012325]
[1734296619342,1.10634834,103110.0,103100.0,2.5e-07]
[1734296619567,0.491105,103090.0,103080.0,8.62e-05]
[1734296619784,1.16872314,103090.0,103080.0,8.62e-05]
[1734296620474,0.9233418,103090.0,103080.0,8.62e-05]
[1734296620692,1.1835351,103090.0,103080.0,8.62e-05]
[1734296620904,0.85035233,103090.0,103080.0,8.62e-05]
[1734296621140,0.90852984,103090.0,103080.0,8.62e-05]
[1734296621345,1.12517676,103090.0,103080.0,8.62e-05]
[1734296621557,0.90852984,103090.0,103080.0,8.62e-05]
[1734296621786,0.96670735,103090.0,103080.0,8.62e-05]
[1734296621997,0.90852984,103090.0,103080.0,8.62e-05]
[1734296622621,0.90818524,103090.0,103080.0,8.62e-05]
[1734296622829,1.07966046,103090.0,103080.0,8.62e-05]
[1734296623057,0.98060643,103090.0,103080.0,8.62e-05]
[1734296623487,0.54931951,103070.0,103060.0,5.099e-05]
[1734296623691,0.86478631,103070.0,103060.0,5.099e-05]
[1734296624316,0.73493865,103070.0,103060.0,5.099e-05]
[1734296624738,0.73493865,103070.0,103060.0,0.00010558]
[1734296625602,0.64837354,103070.0,103060.0,0.00010558]
[1734296626536,0.74085722,103070.0,103060.0,0.00010558]
[1734296627208,0.64837354,103070.0,103060.0,0.00010558]
[1734296628308,0.72595462,103070.0,103060.0,0.00010558]
[1734296628521,0.92266668,103070.0,103060.0,0.00010558]
[1734296628735,1.09555919,103070.0,103060.0,0.00010558]
[1734296628942,0.60961602,103060.0,103050.0,8.62e-05]
[1734296629155,0.70867005,103060.0,103050.0,8.62e-05]
[1734296631436,0.80772408,103060.0,103050.0,8.62e-05]
[1734296633543,0.8127804,103060.0,103050.0,8.62e-05]
[1734296633994,0.87095791,103060.0,103050.0,8.62e-05]
[1734296634208,0.87095791,103060.0,103040.0,8.63e-05]
[1734296634209,0.60963502,103050.0,103040.0,8.63e-05]
[1734296634424,0.65051154,103050.0,103040.0,8.63e-05]
[1734296634640,0.73912794,103050.0,103040.0,8.63e-05]
[1734296635316,0.70868905,103050.0,103040.0,8.63e-05]
[1734296637166,0.70868905,103050.0,103030.0,0.00976406]
[1734296637167,0.493299,103040.0,103030.0,0.00976406]
[1734296637385,0.70870805,103040.0,103030.0,0.00976406]
[1734296638500,0.76688556,103040.0,103030.0,0.00976406]
[1734296639158,0.77699808,103040.0,103030.0,0.00976406]
[1734296639379,0.87605211,103040.0,103030.0,0.00976406]
[1734296640040,0.87605211,103040.0,103020.0,8.62e-05]
[1734296640041,0.194118,103030.0,103020.0,8.62e-05]
[1734296640297,0.70562705,103030.0,103020.0,8.62e-05]
[1734296641378,0.70562705,103030.0,103020.0,0.00063274]
[1734296642677,0.317237,103020.0,103010.0,0.1]
[1734296642890,0.80470008,103020.0,103010.0,0.1]
[1734296643105,0.70564605,103020.0,103010.0,0.1]
[1734296643533,0.70564605,103020.0,103010.0,0.02718465]
[1734296643966,1.40564605,103020.0,103010.0,0.02718465]
[1734296647025,1.40564605,103020.0,103010.0,0.02727085]
[1734296648146,0.70564605,103020.0,103010.0,0.02727085]
[1734296648363,0.7378943,103020.0,103010.0,0.02727085]
[1734296653637,0.7378943,103020.0,103000.0,1.10504697]
[1734296653638,0.55453251,103010.0,103000.0,1.10504697]
[1734296653768,0.70158654,103010.0,103000.0,1.10504697]
[1734296659267,0.64340903,103010.0,103000.0,1.10504697]
[1734296659481,0.70158654,103010.0,103000.0,1.10504697]
[1734296660482,0.72087067,103010.0,103000.0,1.10504697]
[1734296660647,0.73427171,103010.0,103000.0,1.10504697]
[1734296660847,0.83332574,103010.0,103000.0,1.10504697]
[1734296661444,0.73427171,103010.0,103000.0,1.10504697]
[1734296661761,0.35661007,103010.0,103000.0,1.10504697]
[1734296661939,0.30661007,103010.0,103000.0,1.10504697]
[1734296662760,0.35661007,103010.0,103000.0,1.10504697]
[1734296663213,0.30661007,103010.0,103000.0,1.10504697]
[1734296663423,0.32961007,103010.0,103000.0,1.10504697]
[1734296663653,0.37961007,103010.0,103000.0,1.10504697]
[1734296664269,0.32961007,103010.0,103000.0,1.10504697]
[1734296665392,0.30661007,103010.0,103000.0,1.10504697]
[1734296666943,0.35661007,103010.0,103000.0,1.10504697]
[1734296667555,0.37961007,103010.0,103000.0,1.10504697]
[1734296670355,0.47847922,103010.0,103000.0,1.10504697]
[1734296670629,0.37961007,103010.0,103000.0,1.10504697]
[1734296670806,0.55978267,103010.0,103000.0,1.10504697]
[1734296674170,0.61796018,103010.0,103000.0,1.10504697]
[1734296675657,0.70436913,103010.0,103000.0,1.10504697]
[1734296675855,0.80436913,103010.0,103000.0,1.10504697]
[1734296676280,1.10680047,103010.0,103000.0,1.10504697]
[1734296676435,0.93398256,103010.0,103000.0,1.10504697]
[1734296676943,1.10680047,103010.0,103000.0,1.10504697]
[1734296677141,1.32282286,103010.0,103000.0,1.10504697]
[1734296677522,1.32297717,103010.0,103000.0,1.10504697]
[1734296677741,1.33546794,103010.0,103000.0,1.10504697]
[1734296678191,1.23641391,103010.0,103000.0,1.10504697]
[1734296679154,1.10680048,103010.0,103000.0,1.10504697]
[1734296679408,1.05680048,103010.0,103000.0,1.10504697]
[1734296680223,0.88398257,103010.0,103000.0,1.10504697]
[1734296680392,1.14320943,103010.0,103000.0,1.10504697]
[1734296680801,1.14447278,103010.0,103000.0,1.10504697]
[1734296681407,0.92787614,103010.0,103000.0,1.10504697]
[1734296682019,1.02693017,103010.0,103000.0,1.10504697]
[1734296682690,0.92787614,103010.0,103000.0,1.10504697]
[1734296685114,0.9280562,103010.0,103000.0,1.10504697]
[1734296687546,0.91987869,103010.0,103000.0,1.10504697]
[1734296687755,0.91996673,103010.0,103000.0,1.10504697]
[1734296688205,1.0500284,103010.0,103000.0,1.10504697]
[1734296688838,0.91996673,103010.0,103000.0,1.10504697]
[1734296689252,0.80472364,103010.0,103000.0,1.10504697]
[1734296689487,0.80375281,103010.0,103000.0,1.10504697]
[1734296691166,0.7455753,103010.0,103000.0,1.10504697]
[1734296692166,0.92535281,103010.0,103000.0,1.10504697]
[1734296692747,0.8671753,103010.0,103000.0,1.10504697]
[1734296692944,0.92535281,103010.0,103000.0,1.10504697]
[1734296693752,1.18544883,103010.0,103000.0,1.10504697]
[1734296693979,0.92535281,103010.0,103000.0,1.10504697]
[1734296694880,1.18544883,103010.0,103000.0,1.10504697]
[1734296695051,0.96868537,103010.0,103000.0,1.10504697]
[1734296696839,0.91868537,103010.0,103000.0,1.10504697]
[1734296698125,0.91968537,103010.0,103000.0,1.10504697]
[1734296698680,0.919586,103010.0,103000.0,1.10504697]
[1734296703563,0.273,103000.0,102950.0,0.08721144]
[1734296703765,0.29324703,102990.0,102970.0,0.25240851]
[1734296703972,0.29324703,102990.0,102970.0,0.25847692]
[1734296704175,0.29324703,102990.0,102970.0,0.00606841]
[1734296704991,0.29324703,102990.0,102970.0,0.0062325]
[1734296705567,0.29324703,102990.0,102970.0,0.0063187]
[1734296706302,0.57410397,102990.0,102970.0,0.0063187]
[1734296707690,0.48744003,102990.0,102970.0,0.0063187]
[1734296708339,0.76830997,102990.0,102970.0,0.0063187]
[1734296708531,0.57410397,102990.0,102970.0,0.0063187]
[1734296708758,0.57410397,102990.0,102970.0,0.00631881]
[1734296709307,0.57410397,102990.0,102950.0,0.28718379]
[1734296709510,0.57420986,102990.0,102960.0,0.05914864]
[1734296709735,0.58691771,102990.0,102960.0,0.05914864]
[1734296709917,0.66281771,102990.0,102960.0,0.25338764]
[1734296710114,0.66281771,102990.0,102960.0,0.44762764]
[1734296710901,0.66281771,102990.0,102960.0,0.38945013]
[1734296711123,0.85702271,102990.0,102960.0,0.38945013]
[1734296711333,0.66281771,102990.0,102960.0,0.38945013]
[1734296712660,0.66281771,102990.0,102960.0,0.44762764]
[1734296713603,0.79281572,102990.0,102960.0,0.44762764]
[1734296714420,0.79282672,102990.0,102960.0,0.44762664]
[1734296714629,0.79282672,102990.0,102960.0,0.44262664]
[1734296714831,0.79282672,102990.0,102960.0,0.4590204]
[1734296715461,0.79282672,102990.0,102960.0,0.46873003]
[1734296715462,0.66286118,102990.0,102960.0,0.46873003]
[1734296715672,0.46865718,102990.0,102960.0,0.66296903]
[1734296715878,0.0759,102980.0,102960.0,0.46872903]
[1734296716060,0.09905403,102970.0,102960.0,0.46874003]
[1734296716291,0.09905403,102970.0,102960.0,0.61874003]
[1734296717233,0.09905403,102970.0,102960.0,0.17207352]
[1734296717433,0.09905403,102970.0,102960.0,0.36632352]
[1734296718258,0.09905403,102970.0,102960.0,0.36640972]
[1734296721629,0.26435044,102970.0,102960.0,0.00615491]
[1734296721824,0.17765403,102970.0,102960.0,0.00615491]
[1734296722267,0.17765403,102970.0,102960.0,0.20040491]
[1734296723172,0.17765403,102970.0,102960.0,0.21011515]
[1734296724543,0.17765403,102970.0,102960.0,0.1943362]
[1734296724736,0.17765403,102970.0,102960.0,0.21011532]
[1734296727614,0.17765403,102970.0,102960.0,0.20404643]
[1734296727821,0.17765403,102970.0,102960.0,0.21011532]
[1734296729042,0.17765403,102970.0,102960.0,0.26829283]
[1734296729424,0.0786,102970.0,102960.0,0.32647034]
[1734296729630,0.0786,102970.0,102960.0,0.28412211]
[1734296729830,0.0787726,102970.0,102960.0,0.28412211]
[1734296730929,0.0787726,102970.0,102960.0,0.26834299]
[1734296731168,0.0787726,102970.0,102960.0,0.28412115]
[1734296731571,0.08194915,102970.0,102960.0,0.28412115]
[1734296732470,0.08194915,102970.0,102960.0,0.28403495]
[1734296732619,0.08194915,102970.0,102960.0,0.06375522]
[1734296732986,0.08194915,102970.0,102960.0,0.25800522]
[1734296733132,0.00334915,102970.0,102960.0,0.46618273]
[1734296733347,0.00334915,102970.0,102960.0,3.95171852]
[1734296733554,0.00334915,102970.0,102960.0,4.25711176]
[1734296733555,0.0001726,102970.0,102960.0,4.25711176]
[1734296733756,0.0001726,102970.0,102960.0,4.12975751]
[1734296734206,0.0001726,102970.0,102960.0,4.12065124]
[1734296734546,0.0001726,102970.0,102960.0,4.25498142]
[1734296734754,0.0001726,102970.0,102960.0,4.03684339]
[1734296734985,0.0001726,102970.0,102960.0,4.01104566]
[1734296734986,0.00365223,102970.0,102960.0,4.01104566]
[1734296735196,0.0001726,102970.0,102960.0,4.01104566]
[1734296735400,0.00333725,102970.0,102960.0,4.01104566]
[1734296735653,0.0001726,102970.0,102960.0,4.01104566]
[1734296735869,0.00365371,102970.0,102960.0,4.01104566]
[1734296736093,0.0001726,102970.0,102960.0,4.01104566]
[1734296736482,0.00365371,102970.0,102960.0,4.01104566]
[1734296736718,0.0001726,102970.0,102960.0,4.22918369]
[1734296736943,0.0036536,102970.0,102960.0,4.22918369]
[1734296737161,0.0001726,102970.0,102960.0,4.22918369]
[1734296737383,0.0001726,102970.0,102960.0,4.01104566]
[1734296737384,0.0036536,102970.0,102960.0,4.01104566]
[1734296737600,0.0001726,102970.0,102960.0,4.01104566]
[1734296737812,0.003654,102970.0,102960.0,4.01104566]
[1734296738009,0.0001726,102970.0,102960.0,4.01104566]
[1734296738211,0.00365397,102970.0,102960.0,4.01037778]
[1734296738424,0.0001726,102970.0,102960.0,4.05684504]
[1734296739078,0.0001726,102970.0,102960.0,4.07608353]
[1734296739287,0.0001726,102970.0,102960.0,4.02608353]
[1734296739947,0.0001726,102970.0,102960.0,1.45424297]
[1734296740168,0.0001726,102970.0,102960.0,0.32443118]
[1734296740377,0.00404101,102970.0,102960.0,0.32443118]
[1734296741268,0.00404101,102970.0,102960.0,0.47443118]
[1734296741473,0.00404101,102970.0,102960.0,0.47451748]
[1734296741684,0.00404101,102970.0,102960.0,0.35816246]
[1734296741909,0.08184101,102970.0,102960.0,0.35816246]
[1734296742118,0.08184101,102970.0,102960.0,0.47451748]
[1734296742581,0.08184101,102970.0,102960.0,0.48422648]
[1734296744707,0.08184101,102970.0,102960.0,0.49029465]
[1734296747795,0.00404101,102970.0,102960.0,0.49029465]
[1734296749912,0.00404101,102970.0,102960.0,0.47451748]
[1734296750121,0.00404101,102970.0,102960.0,0.48422648]
[1734296750365,0.00404101,102970.0,102960.0,0.4902946]
[1734296752715,0.00404101,102970.0,102960.0,0.57741418]
[1734296752942,0.00404101,102970.0,102960.0,0.70809355]
[1734296753152,0.00404101,102970.0,102960.0,1.02965207]
[1734296753360,0.00404101,102970.0,102960.0,0.70809355]
[1734296753569,0.00404101,102970.0,102960.0,0.57741418]
[1734296753985,0.00404101,102970.0,102960.0,0.4902946]
[1734296755107,0.00404101,102970.0,102960.0,0.37393958]
[1734296755314,0.08184101,102970.0,102960.0,0.4902946]
[1734296761442,0.08184101,102970.0,102960.0,0.49029434]
[1734296763919,0.08184101,102970.0,102960.0,0.52552161]
[1734296766683,0.08184101,102970.0,102960.0,0.40916659]
[1734296766888,0.08184101,102970.0,102960.0,0.52552161]
[1734296767474,0.08184101,102970.0,102960.0,0.50974475]
[1734296767680,0.08184101,102970.0,102960.0,0.52552165]
[1734296768555,0.08184101,102970.0,102960.0,0.61264041]
[1734296769205,0.08184101,102970.0,102960.0,0.52552165]
[1734296770614,0.08184101,102970.0,102960.0,0.50974475]
[1734296770823,0.08184101,102970.0,102960.0,0.65291893]
[1734296771038,0.08184101,102970.0,102960.0,0.56580017]
[1734296771250,0.08184101,102970.0,102960.0,0.65291893]
[1734296771667,0.08184101,102970.0,102960.0,0.78359708]
[1734296771879,0.08184101,102970.0,102960.0,0.65291893]
[1734296772299,0.08184101,102970.0,102960.0,0.65295292]
[1734296772745,0.00404101,102970.0,102960.0,0.56230493]
[1734296772957,0.00404101,102970.0,102960.0,2.93245444]
[1734296773169,0.00404101,102970.0,102960.0,2.87427693]
[1734296773375,0.0001726,102970.0,102960.0,3.5881926]
[1734296773581,0.0039723,102970.0,102960.0,3.5724166]
[1734296773791,0.0039723,102970.0,102960.0,3.47206049]
[1734296774213,0.0039723,102970.0,102960.0,3.64636894]
[1734296774503,0.0039723,102970.0,102960.0,3.58819143]
[1734296774708,0.0039723,102970.0,102960.0,3.13006343]
[1734296774919,0.0039723,102970.0,102960.0,2.76705243]
[1734296775117,0.0039723,102970.0,102960.0,2.59274398]
[1734296775336,0.0039723,102970.0,102960.0,2.76705243]
[1734296776624,0.0039723,102970.0,102960.0,1.14603825]
[1734296776837,0.0854723,102970.0,102960.0,0.76978904]
[1734296777122,0.0854723,102970.0,102960.0,0.76985831]
[1734296777326,0.0854723,102970.0,102960.0,0.52273039]
[1734296777534,0.0854723,102970.0,102960.0,0.63908541]
[1734296777986,0.0854723,102970.0,102960.0,0.55190348]
[1734296778182,0.0854723,102970.0,102960.0,0.63908541]
[1734296778413,0.0854723,102970.0,102960.0,0.55190348]
[1734296779257,0.0854723,102970.0,102960.0,0.63908541]
[1734296779468,0.0854723,102970.0,102960.0,0.55190348]
[1734296780296,0.0854723,102970.0,102960.0,0.63908541]
[1734296780501,0.0854723,102970.0,102960.0,0.55190348]
[1734296780712,0.0854723,102970.0,102960.0,0.63565953]
[1734296781146,0.0854723,102970.0,102960.0,0.5484776]
[1734296781351,0.0854723,102970.0,102960.0,0.63565953]
[1734296781792,0.0854723,102970.0,102960.0,0.62595194]
[1734296785126,0.1354723,102970.0,102960.0,0.62595194]
[1734296786145,0.1819723,102970.0,102960.0,0.6259527]
[1734296788022,0.1319723,102970.0,102960.0,0.4317027]
[1734296788699,0.1319723,102970.0,102960.0,0.6259527]
[1734296789336,0.1319723,102970.0,102960.0,0.62595265]
[1734296790000,0.1319723,102970.0,102960.0,0.62605183]
[1734296790249,0.1319723,102970.0,102960.0,0.53877072]
[1734296790689,0.1319723,102970.0,102960.0,0.48059321]
[1734296790891,0.1319723,102970.0,102960.0,0.62605203]
[1734296791099,0.1319723,102970.0,102960.0,0.53877072]
[1734296793043,0.1319723,102970.0,102960.0,0.53877099]
[1734296793269,0.1319723,102970.0,102960.0,0.6260523]
[1734296793930,0.0039723,102970.0,102960.0,3.58570714]
[1734296794137,0.0039723,102970.0,102960.0,3.13259493]
[1734296794355,0.0039723,102970.0,102960.0,3.28022254]
[1734296794789,0.0039723,102970.0,102960.0,3.4644308]
[1734296795209,0.0039723,102970.0,102960.0,3.28992963]
[1734296795876,0.0039723,102970.0,102960.0,3.28992795]
[1734296796555,0.0067395,102970.0,102960.0,3.28992795]
[1734296796763,0.0001726,102970.0,102960.0,3.28992795]
[1734296796973,0.00673951,102970.0,102960.0,3.28992795]
[1734296797196,0.0001726,102970.0,102960.0,3.28992795]
[1734296797403,0.00673951,102970.0,102960.0,3.46436205]
[1734296797619,0.0001726,102970.0,102960.0,3.46436205]
[1734296798050,0.0001726,102970.0,102960.0,3.28992795]
[1734296798272,0.0001726,102970.0,102960.0,2.52454141]
[1734296798481,0.00674435,102970.0,102960.0,1.43526431]
[1734296798687,0.13504435,102970.0,102960.0,1.43526431]
[1734296798940,0.13504435,102970.0,102960.0,1.55151354]
[1734296799147,0.13504435,102970.0,102960.0,1.55151463]
[1734296799573,0.13316671,102970.0,102960.0,1.55151463]
[1734296799791,0.13316671,102970.0,102960.0,1.27593397]
[1734296800003,0.13316671,102970.0,102960.0,1.54475897]
[1734296800225,0.13316671,102970.0,102960.0,1.27328507]
[1734296800892,0.13316671,102970.0,102960.0,0.39847749]
[1734296801550,0.13316671,102970.0,102960.0,0.43324186]
[1734296801975,0.13316671,102970.0,102960.0,0.58324186]
[1734296802407,0.13316671,102970.0,102960.0,0.58324428]
[1734296802613,0.13316671,102970.0,102960.0,0.57717652]
[1734296802853,0.13316671,102970.0,102960.0,0.58324488]
[1734296804997,0.42645174,102970.0,102960.0,0.12263986]
[1734296805647,0.23222074,102970.0,102960.0,0.11293048]
[1734296807502,0.42645174,102970.0,102960.0,0.11293048]
[1734296808139,0.23222074,102970.0,102960.0,0.11293048]
[1734296808341,0.42645174,102970.0,102960.0,0.11293048]
[1734296808549,0.42645174,102970.0,102960.0,0.10686212]
[1734296808756,0.42645174,102970.0,102960.0,0.11293117]
[1734296808962,0.23222074,102970.0,102960.0,0.11293117]
[1734296813682,0.23222074,102970.0,102960.0,0.17110868]
[1734296813856,0.0782,102960.0,102950.0,0.344258]
[1734296814097,0.0782,102960.0,102950.0,0.4185622]
[1734296814321,0.0782,102960.0,102950.0,0.42497894]
[1734296814753,0.08229145,102960.0,102950.0,0.42497894]
[1734296819651,0.08229145,102960.0,102950.0,0.41214546]
[1734296821281,0.08229145,102960.0,102950.0,0.41223166]
[1734296823807,0.08229145,102960.0,102950.0,0.41223142]
[1734296825787,0.08229145,102960.0,102950.0,0.41830004]
[1734296828122,0.08229145,102960.0,102950.0,0.43113352]
[1734296831301,0.08229145,102960.0,102950.0,3.23577865]
[1734296831516,0.08229145,102960.0,102950.0,1.92532165]
[1734296831517,0.00409145,102960.0,102950.0,1.92532165]
[1734296831715,0.00409145,102960.0,102950.0,2.55178444]
[1734296832140,0.00409145,102960.0,102950.0,2.65083847]
[1734296832356,0.00409145,102960.0,102950.0,2.70083847]
[1734296832566,0.00409145,102960.0,102950.0,2.91861675]
[1734296832782,0.00409145,102960.0,102950.0,2.83151497]
[1734296832992,0.00426385,102960.0,102950.0,2.91861737]
[1734296833414,0.00426385,102960.0,102950.0,2.73467126]
[1734296833632,0.00426385,102960.0,102950.0,3.13624885]
[1734296833850,0.00426385,102960.0,102950.0,2.91846996]
[1734296834937,0.00426385,102960.0,102950.0,2.07441796]
[1734296835162,0.08466385,102960.0,102950.0,1.16755902]
[1734296835369,0.13346385,102960.0,102950.0,1.22573653]
[1734296836000,0.13346385,102960.0,102950.0,1.21602845]
[1734296836831,0.13346385,102960.0,102950.0,0.58966157]
[1734296837041,0.13346385,102960.0,102950.0,0.47330655]
[1734296837247,0.13346385,102960.0,102950.0,0.53148406]
[1734296838087,0.13346385,102960.0,102950.0,0.5314857]
[1734296838510,0.13346385,102960.0,102950.0,0.58966321]
[1734296839822,0.13346385,102960.0,102950.0,0.58966379]
[1734296840255,0.13346385,102960.0,102950.0,1.21071067]
[1734296840701,0.00426385,102960.0,102950.0,1.4839667]
[1734296840910,0.00426385,102960.0,102950.0,1.5339667]
[1734296841117,0.00426385,102960.0,102950.0,1.54367504]
[1734296841965,0.00426385,102960.0,102950.0,1.67432654]
[1734296842595,0.00426385,102960.0,102950.0,1.67467944]
[1734296843046,0.00426385,102960.0,102950.0,1.67515142]
[1734296843280,0.00426385,102960.0,102950.0,1.50083555]
[1734296843492,0.0001724,102960.0,102950.0,1.42529162]
[1734296843703,0.00380685,102960.0,102950.0,1.61954962]
[1734296843917,0.0001724,102960.0,102950.0,1.61954962]
[1734296844127,0.00380685,102960.0,102950.0,1.61954962]
[1734296844780,0.0001724,102960.0,102950.0,1.61954962]
[1734296845194,0.0001724,102960.0,102950.0,1.44531038]
[1734296845424,6e-07,102970.0,102960.0,0.1]
[1734296845640,0.00010589,102990.0,102970.0,0.05]
[1734296845873,8.9e-07,103000.0,102990.0,0.25]
[1734296846086,0.0011726,103010.0,103000.0,5.206191]
[1734296846305,0.0011326,103010.0,103000.0,6.05132332]
[1734296846523,6e-07,103010.0,103000.0,6.3920599]
[1734296846761,6e-07,103010.0,103000.0,1.30536689]
[1734296846987,6e-07,103010.0,103000.0,1.61399942]
[1734296847247,0.0001734,103030.0,103020.0,0.1]
[1734296847469,0.00071998,103030.0,103020.0,5.79954183]
[1734296847686,0.001,103040.0,103030.0,0.273]
[1734296847898,0.00028002,103040.0,103030.0,6.0719659]
[1734296848117,0.00016391,103040.0,103030.0,6.08021527]
[1734296848337,9.1e-07,103040.0,103030.0,6.25319556]
[1734296848572,0.001,103050.0,103040.0,5.229191]
[1734296848792,0.001,103050.0,103040.0,5.53415784]
[1734296849012,0.00105459,103050.0,103040.0,0.77206584]
[1734296849232,0.00105459,103050.0,103040.0,4.55793551]
[1734296850814,0.00105459,103050.0,103040.0,4.53493551]
[1734296851627,5.9e-07,103050.0,103040.0,4.53493551]
[1734296851787,0.001,103060.0,103050.0,5.16219097]
[1734296851986,0.001,103060.0,103050.0,5.56573843]
[1734296852442,0.001,103060.0,103050.0,5.55967576]
[1734296852592,0.001,103060.0,103050.0,5.65439]
[1734296855284,0.001,103060.0,103050.0,1.959196]
[1734296855490,0.001,103060.0,103050.0,1.982014]
[1734296856113,0.001,103060.0,103050.0,1.436525]
[1734296856289,0.001,103060.0,103050.0,1.376404]
[1734296856523,0.0011724,103060.0,103050.0,1.376404]
[1734296856729,0.00676663,103060.0,103050.0,1.376404]
[1734296857566,0.00676663,103060.0,103050.0,1.27734997]
[1734296857990,0.00676663,103060.0,103050.0,1.31613797]
[1734296858398,0.00676663,103060.0,103050.0,1.22748465]
[1734296858806,0.00676663,103060.0,103050.0,1.16933852]
[1734296859008,0.00676663,103060.0,103050.0,1.18070703]
[1734296860485,0.00676663,103060.0,103050.0,1.26936035]
[1734296860692,0.00676663,103060.0,103050.0,1.41841438]
[1734296860897,0.0011724,103060.0,103050.0,1.41841438]
[1734296861102,0.0009288,103060.0,103050.0,1.41841438]
[1734296861311,0.0009288,103060.0,103050.0,1.46841438]
[1734296861312,0.00655185,103060.0,103050.0,1.46841438]
[1734296861692,0.00655185,103060.0,103050.0,1.60251438]
[1734296861935,8e-07,103060.0,103050.0,1.60251438]
[1734296862156,0.001,103070.0,103060.0,5.206191]
[1734296862365,0.0010546,103070.0,103060.0,5.49831193]
[1734296862579,6e-07,103070.0,103060.0,5.70470199]